[Event "94th Paris-ch  2019"]
[Site "Paris"]
[Date "2019.07.14"]
[Round "9.11"]
[White "Materia, Marco"]
[Black "Philippe, Guillaume"]
[Result "0-1"]
[ECO "E42"]
[WhiteElo "2243"]
[BlackElo "2344"]
[Annotator "NA"]
[PlyCount "140"]
[EventDate "2019.07.07"]
[EventType "swiss"]
[EventCountry "FRA"]
[SourceTitle "playchess.com"]
[Source "ChessBase"]
[SourceQuality "1"]
[TimeControl "5400+30"]

1. d4 {[%emt 0:00:00]} Nf6 {[%emt 0:01:26]} 2. c4 {[%emt 0:00:00]} e6 {[%emt 0:00:12]} 3. Nc3 {[%emt 0:00:00]} Bb4 {[%emt 0:00:46]} 4. e3 {[%emt 0:00:00]} c5 {[%emt 0:00:20]} 5. Nge2 {[%emt 0:01:02]} b6 {[%emt 0:00:20]} 6. a3 {[%emt 0:02:20]} Ba5 {[%emt 0:00:14]} 7. Rb1 {[%emt 0:15:24]} Na6 {[%emt 0:00:08]} 8. Qa4 {[%emt 0:05:39]} Bb7 {[%emt 0:14:06]} 9. Bd2 {[%emt 0:14:07]} Bc6 {[%emt 0:00:13]} 10. Qc2 {[%emt 0:01:27]} O-O {[%emt 0:02:46]} 11. Nf4 {[%emt 0:03:49]} cxd4 {[%emt 0:03:08]} 12. exd4 {[%emt 0:01:48]} Bxc3 {[%emt 0:00:13]} 13. Bxc3 {[%emt 0:02:19]} Be4 {[%emt 0:00:28]} 14. Bd3 {[%emt 0:04:47]} d5 {[%emt 0:00:44]} 15. cxd5 {[%emt 0:19:39]} exd5 {[%emt 0:00:34]} 16. f3 {[%emt 0:01:49]} Bxd3 {[%emt 0:01:44]} 17. Nxd3 {[%emt 0:00:19]} Re8+ {[%emt 0:00:30]} 18. Ne5 {[%emt 0:00:54]} Nc7 {[%emt 0:06:13]} 19. O-O {[%emt 0:01:02]} Ne6 {[%emt 0:00:06]} 20. Rbd1 {[%emt 0:02:54]} b5 {[%emt 0:03:20]} 21. a4 {[%emt 0:02:42]} a6 {[%emt 0:02:04]} 22. Rfe1 {[%emt 0:01:23]} Qb6 {[%emt 0:00:47]} 23. Qb3 {[%emt 0:00:51]} Rab8 {[%emt 0:02:19]} 24. Qb4 {[%emt 0:01:17]} Qb7 {[%emt 0:02:20]} 25. Ra1 {[%emt 0:01:14]} Nh5 {[%emt 0:03:39]} 26. axb5 {[%emt 0:02:00]} axb5 {[%emt 0:00:06]} 27. Ra5 {[%emt 0:00:54]} f6 {[%emt 0:01:01]} 28. Nd3 {[%emt 0:01:25]} Qc6 {[%emt 0:00:35]} 29. Qb3 {[%emt 0:04:14]} Nef4 {[%emt 0:06:54]} 30. Rxe8+ {[%emt 0:02:54]} Qxe8 {[%emt 0:00:10]} 31. Qc2 {[%emt 0:02:06]} Qe3+ {[%emt 0:11:23]} 32. Nf2 {[%emt 0:00:18]} Rc8 {[%emt 0:08:17]} 33. Ra3 {[%emt 0:03:57]} b4 {[%emt 0:04:13]} 34. Bxb4 {[%emt 0:00:48]} Qc1+ {[%emt 0:00:35]} 35. Qd1 {[%emt 0:00:35]} Qxd1+ {[%emt 0:02:30]} 36. Nxd1 {[%emt 0:00:01]} Rc1 {[%emt 0:00:09]} 37. g4 {[%emt 0:01:08]} Rxd1+ {[%emt 0:00:36]} 38. Kf2 {[%emt 0:00:06]} Nh3+ {[%emt 0:03:52]} 39. Ke2 {[%emt 0:00:11]} Rxd4 {[%emt 0:00:23]} 40. Ra8+ {[%emt 0:00:53]} Kf7 {[%emt 0:00:30]} 41. Ra7+ {[%emt 0:00:22]} Ke8 {[%emt 0:00:20]} 42. Re7+ {[%emt 0:00:51]} Kd8 {[%emt 0:00:24]} 43. gxh5 {[%emt 0:00:22]} Rxb4 {[%emt 0:00:25]} 44. Rxg7 {[%emt 0:00:09]} Nf4+ {[%emt 0:00:17]} 45. Ke3 {[%emt 0:00:16]} Nxh5 {[%emt 0:00:57]} 46. Rxh7 {[%emt 0:00:28]} Nf4 {[%emt 0:00:05]} 47. Rf7 {[%emt 0:00:39]} Ne6 {[%emt 0:01:57]} 48. Rxf6 {[%emt 0:00:18]} Ke7 {[%emt 0:00:04]} 49. Rh6 {[%emt 0:00:34]} Rb3+ {[%emt 0:00:27]} 50. Kf2 {[%emt 0:00:45]} Rxb2+ {[%emt 0:00:04]} 51. Ke3 {[%emt 0:00:15]} Rb3+ {[%emt 0:00:07]} 52. Kf2 {[%emt 0:00:11]} d4 {[%emt 0:00:23]} 53. Rh5 {[%emt 0:00:21]} Kd6 {[%emt 0:00:39]} 54. Ra5 {[%emt 0:00:46]} Rb2+ {[%emt 0:00:12]} 55. Kg3 {[%emt 0:00:36]} d3 {[%emt 0:00:38]} 56. Ra1 {[%emt 0:00:18]} Ke5 {[%emt 0:02:24]} 57. h4 {[%emt 0:00:27]} d2 {[%emt 0:03:15]} 58. Rd1 {[%emt 0:00:30]} Kd4 {[%emt 0:00:20]} 59. h5 {[%emt 0:00:36]} Ke3 {[%emt 0:00:19]} 60. h6 {[%emt 0:01:16]} Ke2 {[%emt 0:00:29]} 61. h7 {[%emt 0:00:31]} Rb8 {[%emt 0:00:03]} 62. Rb1 {[%emt 0:00:37]} Rh8 {[%emt 0:00:17]} 63. f4 {[%emt 0:00:15]} d1=Q {[%emt 0:00:08]} 64. Rxd1 {[%emt 0:00:10]} Kxd1 {[%emt 0:00:04]} 65. f5 {[%emt 0:00:06]} Nd8 {[%emt 0:00:10]} 66. Kf4 {[%emt 0:00:05]} Rxh7 {[%emt 0:00:09]} 67. Kg5 {[%emt 0:00:07]} Ke2 {[%emt 0:00:07]} 68. Kg6 {[%emt 0:00:04]} Rf7 {[%emt 0:00:04]} 69. f6 {[%emt 0:00:09]} Ke3 {[%emt 0:00:05]} 70. Kf5 {[%emt 0:00:06]} Kd4 {[%emt 0:01:05]} 0-1

[Event "94th Paris-ch  2019"]
[Site "Paris"]
[Date "2019.07.14"]
[Round "9.12"]
[White "Samoun, Florent"]
[Black "Le Goff, Ronan"]
[Result "1/2-1/2"]
[ECO "C79"]
[WhiteElo "2230"]
[BlackElo "2281"]
[Annotator "NA"]
[PlyCount "87"]
[EventDate "2019.07.07"]
[EventType "swiss"]
[EventCountry "FRA"]
[SourceTitle "playchess.com"]
[Source "ChessBase"]
[SourceQuality "1"]
[TimeControl "5400+30"]

1. e4 {[%emt 0:15:39]} e5 {[%emt 0:00:00]} 2. Nf3 {[%emt 0:00:14]} Nc6 {[%emt 0:00:00]} 3. Bb5 {[%emt 0:00:10]} a6 {[%emt 0:00:00]} 4. Ba4 {[%emt 0:00:05]} d6 {[%emt 0:00:05]} 5. c3 {[%emt 0:02:58]} Bd7 {[%emt 0:00:15]} 6. O-O {[%emt 0:00:25]} g6 {[%emt 0:00:10]} 7. d4 {[%emt 0:01:27]} Bg7 {[%emt 0:00:20]} 8. Re1 {[%emt 0:02:08]} Nf6 {[%emt 0:00:10]} 9. dxe5 {[%emt 0:01:18]} Nxe5 {[%emt 0:01:51]} 10. Nxe5 {[%emt 0:01:12]} dxe5 {[%emt 0:00:34]} 11. Bxd7+ {[%emt 0:09:27]} Qxd7 {[%emt 0:01:56]} 12. Qxd7+ {[%emt 0:00:32]} Nxd7 {[%emt 0:00:10]} 13. Be3 {[%emt 0:01:09]} O-O-O {[%emt 0:01:28]} 14. Nd2 {[%emt 0:02:56]} Nc5 {[%emt 0:02:09]} 15. Red1 {[%emt 0:09:07]} Na4 {[%emt 0:06:27]} 16. Rab1 {[%emt 0:04:09]} Rd3 {[%emt 0:04:05]} 17. Kf1 {[%emt 0:17:26]} Rhd8 {[%emt 0:07:22]} 18. g4 {[%emt 0:04:39]} Bf8 {[%emt 0:05:13]} 19. Ke2 {[%emt 0:02:45]} f6 {[%emt 0:08:11]} 20. Rdc1 {[%emt 0:07:15]} Bc5 {[%emt 0:02:46]} 21. Rc2 {[%emt 0:01:13]} b5 {[%emt 0:04:05]} 22. Rbc1 {[%emt 0:05:01]} Be7 {[%emt 0:04:40]} 23. c4 {[%emt 0:05:27]} b4 {[%emt 0:09:59]} 24. c5 {[%emt 0:00:14]} c6 {[%emt 0:02:20]} 25. Nb3 {[%emt 0:02:52]} R3d7 {[%emt 0:01:57]} 26. Rb1 {[%emt 0:01:19]} Ra7 {[%emt 0:01:43]} 27. Na5 {[%emt 0:00:35]} Kc7 {[%emt 0:00:09]} 28. Rc4 {[%emt 0:01:45]} Rb8 {[%emt 0:00:22]} 29. Kd2 {[%emt 0:00:28]} Rb5 {[%emt 0:00:53]} 30. Nb3 {[%emt 0:00:07]} a5 {[%emt 0:00:20]} 31. Kc2 {[%emt 0:00:45]} Ra8 {[%emt 0:00:45]} 32. Rd1 {[%emt 0:00:24]} Rh8 {[%emt 0:00:32]} 33. f4 {[%emt 0:00:45]} Kc8 {[%emt 0:00:32]} 34. fxe5 {[%emt 0:00:15]} fxe5 {[%emt 0:00:09]} 35. Rf1 {[%emt 0:00:26]} Kd7 {[%emt 0:00:21]} 36. g5 {[%emt 0:00:49]} Ke6 {[%emt 0:00:36]} 37. h3 {[%emt 0:00:29]} Rd8 {[%emt 0:00:31]} 38. Rf2 {[%emt 0:00:31]} Rd7 {[%emt 0:01:26]} 39. Rf1 {[%emt 0:00:29]} Rd8 {[%emt 0:01:11]} 40. h4 {[%emt 0:00:18]} Ra8 {[%emt 0:00:29]} 41. Rf3 {[%emt 0:00:41]} Rd8 {[%emt 0:01:16]} 42. Rf2 {[%emt 0:00:19]} Ra8 {[%emt 0:00:06]} 43. Rf1 {[%emt 0:00:43]} Rd8 {[%emt 0:00:07]} 44. Rf2 {[%emt 0:00:31]} 1/2-1/2

[Event "94th Paris-ch  2019"]
[Site "Paris"]
[Date "2019.07.14"]
[Round "9.13"]
[White "Manoeuvre, Antoine"]
[Black "Tomasi, Albert"]
[Result "1-0"]
[ECO "A30"]
[WhiteElo "2325"]
[BlackElo "2300"]
[Annotator "NA"]
[PlyCount "81"]
[EventDate "2019.07.07"]
[EventType "swiss"]
[EventCountry "FRA"]
[SourceTitle "playchess.com"]
[Source "ChessBase"]
[SourceQuality "1"]
[TimeControl "5400+30"]

1. Nf3 {[%emt 0:00:00]} Nf6 {[%emt 0:03:46]} 2. b3 {[%emt 0:00:00]} c5 {[%emt 0:03:54]} 3. c4 {[%emt 0:01:47]} d5 {[%emt 0:02:39]} 4. cxd5 {[%emt 0:00:58]} Nxd5 {[%emt 0:00:07]} 5. g3 {[%emt 0:03:20]} Nc6 {[%emt 0:01:16]} 6. Bb2 {[%emt 0:00:16]} f6 {[%emt 0:03:57]} 7. Nc3 {[%emt 0:08:52]} e5 {[%emt 0:06:22]} 8. Nxd5 {[%emt 0:06:26]} Qxd5 {[%emt 0:00:19]} 9. d3 {[%emt 0:00:16]} Be6 {[%emt 0:02:33]} 10. Bg2 {[%emt 0:00:19]} Be7 {[%emt 0:01:51]} 11. O-O {[%emt 0:03:37]} Qd7 {[%emt 0:00:07]} 12. Qd2 {[%emt 0:02:52]} O-O {[%emt 0:00:27]} 13. Rfc1 {[%emt 0:01:06]} a5 {[%emt 0:06:29]} 14. Qd1 {[%emt 0:02:25]} a4 {[%emt 0:30:06]} 15. bxa4 {[%emt 0:04:36]} Nb4 {[%emt 0:00:33]} 16. Nd2 {[%emt 0:16:09]} Nxa2 {[%emt 0:08:32]} 17. Rcb1 {[%emt 0:00:37]} Rfb8 {[%emt 0:04:57]} 18. Nc4 {[%emt 0:06:29]} Qxa4 {[%emt 0:01:29]} 19. Qd2 {[%emt 0:00:04]} Ra6 {[%emt 0:09:23]} 20. Bc3 {[%emt 0:04:23]} b5 {[%emt 0:00:19]} 21. Rb2 {[%emt 0:01:06]} Nxc3 {[%emt 0:07:48]} 22. Rxa4 {[%emt 0:00:07]} Nxa4 {[%emt 0:00:10]} 23. Rb1 {[%emt 0:00:39]} b4 {[%emt 0:02:01]} 24. Ra1 {[%emt 0:01:36]} Bd7 {[%emt 0:02:23]} 25. Nb2 {[%emt 0:03:58]} b3 {[%emt 0:00:29]} 26. Bd5+ {[%emt 0:00:53]} Kf8 {[%emt 0:00:05]} 27. Bc4 {[%emt 0:03:53]} Raa8 {[%emt 0:00:33]} 28. Rb1 {[%emt 0:03:13]} Rb4 {[%emt 0:00:52]} 29. Nxa4 {[%emt 0:01:53]} Bxa4 {[%emt 0:00:11]} 30. Qe3 {[%emt 0:00:54]} Bc6 {[%emt 0:00:43]} 31. Qc1 {[%emt 0:01:40]} b2 {[%emt 0:00:33]} 32. Rxb2 {[%emt 0:00:29]} Ra3 {[%emt 0:00:35]} 33. Ra2 {[%emt 0:01:55]} Rc3 {[%emt 0:00:29]} 34. Qa1 {[%emt 0:00:43]} Rcxc4 {[%emt 0:00:31]} 35. dxc4 {[%emt 0:00:15]} Rxc4 {[%emt 0:00:18]} 36. Ra7 {[%emt 0:02:40]} Rd4 {[%emt 0:00:41]} 37. f3 {[%emt 0:00:47]} c4 {[%emt 0:00:17]} 38. Qa6 {[%emt 0:00:42]} Be8 {[%emt 0:00:44]} 39. Rc7 {[%emt 0:01:15]} Bf7 {[%emt 0:00:30]} 40. Qa7 {[%emt 0:00:26]} Rd1+ {[%emt 0:00:30]} 41. Kg2 {[%emt 0:00:40]} 1-0

[Event "94th Paris-ch  2019"]
[Site "Paris"]
[Date "2019.07.14"]
[Round "9.14"]
[White "Dutreuil, Raphael"]
[Black "Le Quang, Kim"]
[Result "1/2-1/2"]
[ECO "A86"]
[WhiteElo "2302"]
[BlackElo "2243"]
[Annotator "NA"]
[PlyCount "55"]
[EventDate "2019.07.07"]
[EventType "swiss"]
[EventCountry "FRA"]
[SourceTitle "playchess.com"]
[Source "ChessBase"]
[SourceQuality "1"]
[TimeControl "5400+30"]

1. g3 {[%emt 0:12:09]} f5 {[%emt 0:02:36]} 2. Bg2 {[%emt 0:00:19]} Nf6 {[%emt 0:00:04]} 3. c4 {[%emt 0:01:09]} g6 {[%emt 0:00:07]} 4. d4 {[%emt 0:01:38]} Bg7 {[%emt 0:00:06]} 5. Nh3 {[%emt 0:01:26]} d6 {[%emt 0:01:45]} 6. O-O {[%emt 0:00:32]} e5 {[%emt 0:02:29]} 7. dxe5 {[%emt 0:01:17]} dxe5 {[%emt 0:00:04]} 8. Qxd8+ {[%emt 0:00:31]} Kxd8 {[%emt 0:00:20]} 9. e4 {[%emt 0:04:34]} c6 {[%emt 0:08:48]} 10. exf5 {[%emt 0:10:58]} gxf5 {[%emt 0:01:15]} 11. Ng5 {[%emt 0:00:35]} Kc7 {[%emt 0:09:14]} 12. Re1 {[%emt 0:00:28]} Re8 {[%emt 0:00:45]} 13. b3 {[%emt 0:01:21]} Nbd7 {[%emt 0:03:33]} 14. Bb2 {[%emt 0:03:45]} h6 {[%emt 0:05:37]} 15. Nh3 {[%emt 0:17:03]} Bf8 {[%emt 0:13:14]} 16. Nd2 {[%emt 0:03:33]} Bd6 {[%emt 0:05:06]} 17. Rad1 {[%emt 0:01:13]} a5 {[%emt 0:04:03]} 18. Nf3 {[%emt 0:07:38]} e4 {[%emt 0:14:59]} 19. Nh4 {[%emt 0:01:06]} Ne5 {[%emt 0:00:19]} 20. Nf4 {[%emt 0:03:08]} a4 {[%emt 0:00:17]} 21. Bd4 {[%emt 0:00:48]} Bb4 {[%emt 0:03:01]} 22. Re2 {[%emt 0:02:29]} axb3 {[%emt 0:01:50]} 23. axb3 {[%emt 0:00:14]} Ra5 {[%emt 0:04:40]} 24. Nhg6 {[%emt 0:01:26]} Nfd7 {[%emt 0:04:14]} 25. Ra1 {[%emt 0:03:34]} Nxg6 {[%emt 0:02:48]} 26. Nxg6 {[%emt 0:00:15]} Rxa1+ {[%emt 0:00:11]} 27. Bxa1 {[%emt 0:00:04]} Nc5 {[%emt 0:00:36]} 28. f3 {[%emt 0:02:05]} 1/2-1/2

[Event "94th Paris-ch  2019"]
[Site "Paris"]
[Date "2019.07.14"]
[Round "9.15"]
[White "Hingouet, Matthieu"]
[Black "Vardaan Nagpal"]
[Result "0-1"]
[ECO "D30"]
[WhiteElo "2245"]
[BlackElo "2355"]
[Annotator "NA"]
[PlyCount "102"]
[EventDate "2019.07.07"]
[EventType "swiss"]
[EventCountry "FRA"]
[SourceTitle "playchess.com"]
[Source "ChessBase"]
[SourceQuality "1"]
[TimeControl "5400+30"]

1. d4 {[%emt 0:00:00]} d5 {[%emt 0:00:00]} 2. c4 {[%emt 0:00:00]} c6 {[%emt 0:00:00]} 3. Nf3 {[%emt 0:00:00]} e6 {[%emt 0:00:00]} 4. Qc2 {[%emt 0:01:30]} Nf6 {[%emt 0:00:15]} 5. g3 {[%emt 0:01:33]} dxc4 {[%emt 0:00:06]} 6. Qxc4 {[%emt 0:00:09]} b5 {[%emt 0:00:03]} 7. Qc2 {[%emt 0:00:43]} Bb7 {[%emt 0:00:07]} 8. Bg2 {[%emt 0:00:31]} Nbd7 {[%emt 0:00:02]} 9. O-O {[%emt 0:02:32]} c5 {[%emt 0:00:08]} 10. Rd1 {[%emt 0:06:10]} Rc8 {[%emt 0:00:37]} 11. Qb3 {[%emt 0:07:11]} a6 {[%emt 0:01:53]} 12. dxc5 {[%emt 0:02:59]} Bxc5 {[%emt 0:00:23]} 13. Ne5 {[%emt 0:07:34]} Qb6 {[%emt 0:11:10]} 14. Nxd7 {[%emt 0:20:03]} Nxd7 {[%emt 0:00:21]} 15. Bxb7 {[%emt 0:03:25]} Qxb7 {[%emt 0:00:32]} 16. Be3 {[%emt 0:05:23]} O-O {[%emt 0:00:20]} 17. Nd2 {[%emt 0:06:34]} Nf6 {[%emt 0:04:03]} 18. Rac1 {[%emt 0:01:52]} Bxe3 {[%emt 0:00:34]} 19. Qxe3 {[%emt 0:00:10]} Nd5 {[%emt 0:00:04]} 20. Qe4 {[%emt 0:01:38]} Rxc1 {[%emt 0:01:02]} 21. Rxc1 {[%emt 0:00:05]} Rc8 {[%emt 0:00:04]} 22. Rxc8+ {[%emt 0:05:20]} Qxc8 {[%emt 0:00:02]} 23. Nb3 {[%emt 0:00:10]} h6 {[%emt 0:00:42]} 24. h4 {[%emt 0:02:06]} h5 {[%emt 0:01:05]} 25. Kg2 {[%emt 0:01:46]} Nf6 {[%emt 0:00:24]} 26. Qd3 {[%emt 0:01:44]} Qc6+ {[%emt 0:00:52]} 27. Kg1 {[%emt 0:01:00]} Ng4 {[%emt 0:01:28]} 28. Qd8+ {[%emt 0:00:47]} Kh7 {[%emt 0:00:02]} 29. Qd3+ {[%emt 0:01:08]} g6 {[%emt 0:01:43]} 30. Qf3 {[%emt 0:01:27]} Qc7 {[%emt 0:10:22]} 31. Qc3 {[%emt 0:00:26]} Qd6 {[%emt 0:01:53]} 32. Qd4 {[%emt 0:00:33]} Qc6 {[%emt 0:01:34]} 33. Nc5 {[%emt 0:01:52]} e5 {[%emt 0:02:03]} 34. Qc3 {[%emt 0:00:39]} Qd5 {[%emt 0:02:55]} 35. Nxa6 {[%emt 0:01:36]} Qxa2 {[%emt 0:11:53]} 36. Nc5 {[%emt 0:00:25]} Qd5 {[%emt 0:08:05]} 37. Nd3 {[%emt 0:00:53]} e4 {[%emt 0:00:08]} 38. Nf4 {[%emt 0:00:17]} Qd7 {[%emt 0:00:01]} 39. Kg2 {[%emt 0:02:19]} Qa7 {[%emt 0:01:54]} 40. Nh3 {[%emt 0:00:27]} Qb7 {[%emt 0:07:23]} 41. Qd4 {[%emt 0:00:54]} f6 {[%emt 0:01:39]} 42. Nf4 {[%emt 0:01:15]} f5 {[%emt 0:03:41]} 43. Ne6 {[%emt 0:01:30]} Qe7 {[%emt 0:06:10]} 44. Ng5+ {[%emt 0:00:06]} Kg8 {[%emt 0:00:34]} 45. Qd5+ {[%emt 0:00:44]} Kg7 {[%emt 0:00:00]} 46. Qxb5 {[%emt 0:00:46]} Qa7 {[%emt 0:00:26]} 47. Nh3 {[%emt 0:02:27]} Qd4 {[%emt 0:02:58]} 48. Qb7+ {[%emt 0:00:04]} Kf8 {[%emt 0:00:15]} 49. b4 {[%emt 0:01:51]} Qc4 {[%emt 0:03:05]} 50. Nf4 {[%emt 0:00:55]} Qf7 {[%emt 0:01:06]} 51. b5 {[%emt 0:01:03]} Qxb7 {[%emt 0:00:00]} 0-1

[Event "94th Paris-ch  2019"]
[Site "Paris"]
[Date "2019.07.14"]
[Round "9.16"]
[White "Lutard, Theo"]
[Black "Eden, James"]
[Result "1/2-1/2"]
[ECO "C50"]
[WhiteElo "2222"]
[BlackElo "2343"]
[Annotator "NA"]
[PlyCount "153"]
[EventDate "2019.07.07"]
[EventType "swiss"]
[EventCountry "FRA"]
[SourceTitle "playchess.com"]
[Source "ChessBase"]
[SourceQuality "1"]
[TimeControl "5400+30"]

1. e4 {[%emt 0:00:00]} e5 {[%emt 0:20:06]} 2. Nf3 {[%emt 0:00:00]} Nc6 {[%emt 0:00:06]} 3. Bc4 {[%emt 0:00:00]} Nf6 {[%emt 0:00:16]} 4. d3 {[%emt 0:00:00]} Bc5 {[%emt 0:00:45]} 5. O-O {[%emt 0:00:16]} O-O {[%emt 0:01:04]} 6. h3 {[%emt 0:00:17]} h6 {[%emt 0:01:10]} 7. c3 {[%emt 0:00:53]} d5 {[%emt 0:00:21]} 8. exd5 {[%emt 0:00:28]} Nxd5 {[%emt 0:00:08]} 9. Re1 {[%emt 0:10:48]} Re8 {[%emt 0:04:33]} 10. d4 {[%emt 0:11:40]} Bb6 {[%emt 0:05:49]} 11. dxe5 {[%emt 0:09:14]} Be6 {[%emt 0:11:10]} 12. Bf1 {[%emt 0:10:36]} Qe7 {[%emt 0:02:46]} 13. c4 {[%emt 0:15:12]} Ndb4 {[%emt 0:09:48]} 14. a3 {[%emt 0:03:31]} Rad8 {[%emt 0:01:23]} 15. Qb3 {[%emt 0:01:03]} Na6 {[%emt 0:00:19]} 16. Be3 {[%emt 0:03:26]} Bf5 {[%emt 0:09:41]} 17. Bxb6 {[%emt 0:05:55]} axb6 {[%emt 0:01:08]} 18. Qe3 {[%emt 0:01:18]} Bxb1 {[%emt 0:05:38]} 19. Raxb1 {[%emt 0:00:26]} Nc5 {[%emt 0:00:20]} 20. Qf4 {[%emt 0:09:52]} Ne6 {[%emt 0:01:10]} 21. Qf5 {[%emt 0:02:43]} Ned4 {[%emt 0:01:52]} 22. Nxd4 {[%emt 0:02:06]} Rxd4 {[%emt 0:00:23]} 23. Qf3 {[%emt 0:05:05]} Qg5 {[%emt 0:01:21]} 24. e6 {[%emt 0:02:14]} fxe6 {[%emt 0:00:32]} 25. g3 {[%emt 0:00:58]} e5 {[%emt 0:00:57]} 26. Qe3 {[%emt 0:00:51]} Qf6 {[%emt 0:00:54]} 27. b4 {[%emt 0:01:31]} e4 {[%emt 0:01:10]} 28. Rbd1 {[%emt 0:00:22]} Kh8 {[%emt 0:02:17]} 29. Be2 {[%emt 0:01:41]} Red8 {[%emt 0:01:46]} 30. Rxd4 {[%emt 0:00:22]} Rxd4 {[%emt 0:00:15]} 31. Kg2 {[%emt 0:00:31]} Qd6 {[%emt 0:01:02]} 32. f3 {[%emt 0:00:36]} Ne5 {[%emt 0:01:50]} 33. fxe4 {[%emt 0:00:25]} Rd2 {[%emt 0:00:37]} 34. Kg1 {[%emt 0:01:05]} Rc2 {[%emt 0:01:32]} 35. Rf1 {[%emt 0:00:25]} Qe6 {[%emt 0:00:28]} 36. g4 {[%emt 0:01:27]} Ng6 {[%emt 0:03:56]} 37. Bd3 {[%emt 0:00:31]} Ra2 {[%emt 0:00:15]} 38. Qd4 {[%emt 0:00:39]} Qe5 {[%emt 0:02:05]} 39. Qxe5 {[%emt 0:00:25]} Nxe5 {[%emt 0:00:03]} 40. Rf8+ {[%emt 0:00:34]} Kh7 {[%emt 0:00:02]} 41. Bf1 {[%emt 0:00:21]} Rxa3 {[%emt 0:01:11]} 42. Rc8 {[%emt 0:00:21]} Ra2 {[%emt 0:00:17]} 43. Bg2 {[%emt 0:00:30]} c6 {[%emt 0:00:19]} 44. b5 {[%emt 0:00:40]} c5 {[%emt 0:00:24]} 45. Rc7 {[%emt 0:00:26]} Kg6 {[%emt 0:01:17]} 46. Rxb7 {[%emt 0:00:30]} Kg5 {[%emt 0:00:59]} 47. Rxg7+ {[%emt 0:00:28]} Kf4 {[%emt 0:00:09]} 48. Re7 {[%emt 0:00:29]} Nxc4 {[%emt 0:00:56]} 49. Rf7+ {[%emt 0:00:23]} Kg3 {[%emt 0:00:18]} 50. Rf3+ {[%emt 0:00:19]} Kh4 {[%emt 0:00:02]} 51. Kh2 {[%emt 0:00:30]} Kg5 {[%emt 0:01:53]} 52. Kg3 {[%emt 0:00:06]} Ra3 {[%emt 0:01:05]} 53. h4+ {[%emt 0:00:39]} Kg6 {[%emt 0:00:02]} 54. Kf4 {[%emt 0:01:00]} Rxf3+ {[%emt 0:00:26]} 55. Bxf3 {[%emt 0:00:17]} Na3 {[%emt 0:00:06]} 56. Be2 {[%emt 0:00:49]} c4 {[%emt 0:01:21]} 57. Ke3 {[%emt 0:00:10]} c3 {[%emt 0:00:10]} 58. e5 {[%emt 0:00:49]} Kf7 {[%emt 0:00:43]} 59. g5 {[%emt 0:00:27]} hxg5 {[%emt 0:00:06]} 60. hxg5 {[%emt 0:00:03]} Nc2+ {[%emt 0:01:48]} 61. Kd3 {[%emt 0:00:14]} Nd4 {[%emt 0:00:41]} 62. Bh5+ {[%emt 0:00:09]} Kg7 {[%emt 0:00:42]} 63. Kxc3 {[%emt 0:00:23]} Nxb5+ {[%emt 0:00:25]} 64. Kd3 {[%emt 0:00:48]} Nc7 {[%emt 0:00:23]} 65. Ke4 {[%emt 0:00:41]} Ne6 {[%emt 0:00:13]} 66. Kf5 {[%emt 0:00:25]} Nd4+ {[%emt 0:00:13]} 67. Ke4 {[%emt 0:00:04]} Ne6 {[%emt 0:00:06]} 68. Kf5 {[%emt 0:01:13]} Nd4+ {[%emt 0:00:07]} 69. Kf4 {[%emt 0:00:24]} Ne6+ {[%emt 0:00:39]} 70. Kg4 {[%emt 0:00:40]} b5 {[%emt 0:00:17]} 71. Be8 {[%emt 0:00:17]} b4 {[%emt 0:00:13]} 72. Bd7 {[%emt 0:01:00]} Nc5 {[%emt 0:01:41]} 73. e6 {[%emt 0:00:49]} Kf8 {[%emt 0:00:22]} 74. g6 {[%emt 0:00:32]} b3 {[%emt 0:00:10]} 75. e7+ {[%emt 0:00:36]} Kxe7 {[%emt 0:00:07]} 76. Bf5 {[%emt 0:00:15]} Kf6 {[%emt 0:00:55]} 77. Bb1 {[%emt 0:00:13]} 1/2-1/2